[Event "EYCC Girls U20 2021"]
[Site "Tornelo"]
[Date "2021.10.15"]
[Round "2.2"]
[White "Schulze, Lara"]
[Black "Konecny, Sophie"]
[Result "1-0"]
[ECO "C06"]
[WhiteElo "2250"]
[BlackElo "1864"]
[Annotator "ChessBase"]
[PlyCount "131"]
[EventDate "2021.10.15"]
[EventType "swiss"]
[EventCountry "NET"]
[SourceTitle "playchess.com"]
[Source "ChessBase"]
[SourceQuality "1"]
[TimeControl "5400+30"]

1. e4 {[%emt 0:00:30]} e6 {[%emt 0:00:44]} 2. d4 {[%emt 0:00:05]} d5 {[%emt 0:00:06]} 3. Nd2 {[%emt 0:00:04]} a6 {[%emt 0:00:08]} 4. Ngf3 {[%emt 0:00:33]} Nf6 {[%emt 0:00:10]} 5. e5 {[%emt 0:00:21]} Nfd7 {[%emt 0:00:07]} 6. Bd3 {[%emt 0:00:07]} c5 {[%emt 0:00:07]} 7. c3 {[%emt 0:00:06]} Nc6 {[%emt 0:00:07]} 8. O-O {[%emt 0:00:24]} g5 {[%emt 0:00:10]} 9. Nb3 {[%emt 0:02:03]} c4 {[%emt 0:00:14]} 10. Nxg5 {[%emt 0:00:35]} cxd3 {[%emt 0:00:47]} 11. Nxe6 {[%emt 0:00:33]} Qb6 {[%emt 0:00:38]} 12. Nf4 {[%emt 0:03:59]} Ne7 {[%emt 0:00:24]} 13. Qh5 {[%emt 0:04:17]} Ng6 {[%emt 0:01:48]} 14. Nxd5 {[%emt 0:11:42]} Qc6 {[%emt 0:00:14]} 15. c4 {[%emt 0:04:14]} Qxc4 {[%emt 0:01:04]} 16. Qf3 {[%emt 0:17:46]} Bg7 {[%emt 0:09:01]} 17. Bg5 {[%emt 0:12:11]} O-O {[%emt 0:13:20]} 18. Rfc1 {[%emt 0:02:24]} Qa4 {[%emt 0:04:44]} 19. Qxd3 {[%emt 0:09:58]} Ndxe5 {[%emt 0:10:05]} 20. dxe5 {[%emt 0:00:51]} Nxe5 {[%emt 0:01:21]} 21. Qg3 {[%emt 0:05:40]} Qe4 {[%emt 0:08:10]} 22. Nf6+ {[%emt 0:06:03]} Bxf6 {[%emt 0:00:34]} 23. Bxf6+ {[%emt 0:00:04]} Ng6 {[%emt 0:00:15]} 24. Qg5 {[%emt 0:05:40]} Qf4 {[%emt 0:04:37]} 25. Rc5 {[%emt 0:05:21]} h6 {[%emt 0:04:49]} 26. Qxf4 {[%emt 0:01:02]} Nxf4 {[%emt 0:00:06]} 27. g3 {[%emt 0:01:17]} Ne6 {[%emt 0:02:32]} 28. Rd5 {[%emt 0:00:34]} b5 {[%emt 0:03:08]} 29. Na5 {[%emt 0:00:32]} Ng7 {[%emt 0:04:58]} 30. b3 {[%emt 0:03:18]} Be6 {[%emt 0:01:50]} 31. Rc5 {[%emt 0:00:06]} Rfc8 {[%emt 0:02:37]} 32. Nc6 {[%emt 0:00:46]} Kh7 {[%emt 0:03:31]} 33. Rac1 {[%emt 0:00:10]} Nf5 {[%emt 0:01:19]} 34. f3 {[%emt 0:01:16]} Nd6 {[%emt 0:06:15]} 35. Ne7 {[%emt 0:01:25]} Rxc5 {[%emt 0:01:29]} 36. Rxc5 {[%emt 0:00:04]} Ne8 {[%emt 0:01:30]} 37. Bb2 {[%emt 0:00:53]} Ra7 {[%emt 0:02:27]} 38. Nc6 {[%emt 0:00:25]} Rc7 {[%emt 0:00:57]} 39. Bd4 {[%emt 0:00:35]} Rc8 {[%emt 0:05:25]} 40. Kf2 {[%emt 0:00:27]} Nd6 {[%emt 0:01:09]} 41. Ne7 {[%emt 0:00:48]} Rxc5 {[%emt 0:01:09]} 42. Bxc5 {[%emt 0:00:04]} Nb7 {[%emt 0:00:23]} 43. Bd4 {[%emt 0:00:13]} Bd7 {[%emt 0:03:12]} 44. Ke3 {[%emt 0:00:26]} Nd8 {[%emt 0:00:40]} 45. Ke4 {[%emt 0:01:20]} Nc6 {[%emt 0:01:00]} 46. Nd5 {[%emt 0:00:15]} Kg6 {[%emt 0:01:29]} 47. Nf4+ {[%emt 0:00:07]} Kh7 {[%emt 0:00:19]} 48. Bc5 {[%emt 0:00:26]} Nd8 {[%emt 0:00:43]} 49. Ke5 {[%emt 0:01:22]} Ne6 {[%emt 0:00:52]} 50. Nd3 {[%emt 0:00:15]} Ng5 {[%emt 0:01:47]} 51. f4 {[%emt 0:01:00]} Nf3+ {[%emt 0:00:11]} 52. Kf6 {[%emt 0:00:35]} Nxh2 {[%emt 0:00:19]} 53. Kxf7 {[%emt 0:00:08]} Nf1 {[%emt 0:00:12]} 54. Bf2 {[%emt 0:00:21]} Bf5 {[%emt 0:00:56]} 55. Nc5 {[%emt 0:00:33]} a5 {[%emt 0:00:10]} 56. Ne6 {[%emt 0:01:09]} Bg6+ {[%emt 0:00:41]} 57. Kf6 {[%emt 0:00:11]} Bb1 {[%emt 0:00:14]} 58. f5 {[%emt 0:00:24]} Nxg3 {[%emt 0:01:07]} 59. Bxg3 {[%emt 0:00:11]} Bxa2 {[%emt 0:00:08]} 60. Ke7 {[%emt 0:01:03]} Bb1 {[%emt 0:00:59]} 61. f6 {[%emt 0:00:07]} Bg6 {[%emt 0:00:09]} 62. Nf8+ {[%emt 0:00:07]} Kg8 {[%emt 0:00:24]} 63. Nxg6 {[%emt 0:00:06]} b4 {[%emt 0:00:30]} 64. f7+ {[%emt 0:00:04]} Kh7 {[%emt 0:00:05]} 65. Nf8+ {[%emt 0:00:30]} Kh8 {[%emt 0:00:09]} 66. Be5# {[%emt 0:00:05]} 1-0

[Event "EYCC Girls U20 2021"]
[Site "Tornelo"]
[Date "2021.10.15"]
[Round "2.3"]
[White "Radeva, Viktoria"]
[Black "Nosacheva, Mariya"]
[Result "1/2-1/2"]
[ECO "C54"]
[WhiteElo "2314"]
[BlackElo "2239"]
[Annotator "ChessBase"]
[PlyCount "106"]
[EventDate "2021.10.15"]
[EventType "swiss"]
[EventCountry "NET"]
[SourceTitle "playchess.com"]
[Source "ChessBase"]
[SourceQuality "1"]
[TimeControl "5400+30"]

1. e4 {[%emt 0:00:30]} e5 {[%emt 0:00:34]} 2. Nf3 {[%emt 0:00:10]} Nc6 {[%emt 0:00:05]} 3. Bc4 {[%emt 0:00:08]} Bc5 {[%emt 0:00:04]} 4. d3 {[%emt 0:00:11]} Nf6 {[%emt 0:00:12]} 5. O-O {[%emt 0:00:15]} d6 {[%emt 0:00:11]} 6. c3 {[%emt 0:00:31]} a5 {[%emt 0:00:12]} 7. Re1 {[%emt 0:02:27]} O-O {[%emt 0:00:38]} 8. h3 {[%emt 0:00:32]} h6 {[%emt 0:04:00]} 9. Nbd2 {[%emt 0:00:32]} Ba7 {[%emt 0:00:13]} 10. Nf1 {[%emt 0:02:00]} Be6 {[%emt 0:00:26]} 11. Bb5 {[%emt 0:02:49]} Ne7 {[%emt 0:00:21]} 12. Ng3 {[%emt 0:07:22]} c6 {[%emt 0:03:28]} 13. Ba4 {[%emt 0:00:28]} Qc8 {[%emt 0:00:48]} 14. d4 {[%emt 0:08:49]} Ng6 {[%emt 0:01:08]} 15. Be3 {[%emt 0:09:19]} Bb8 {[%emt 0:14:00]} 16. Bc2 {[%emt 0:06:57]} Kh7 {[%emt 0:03:52]} 17. a4 {[%emt 0:07:43]} b5 {[%emt 0:12:22]} 18. axb5 {[%emt 0:06:19]} cxb5 {[%emt 0:00:07]} 19. Qe2 {[%emt 0:05:10]} Bc7 {[%emt 0:06:46]} 20. Bd3 {[%emt 0:04:35]} b4 {[%emt 0:02:43]} 21. Rec1 {[%emt 0:04:54]} b3 {[%emt 0:05:37]} 22. d5 {[%emt 0:02:05]} Bd7 {[%emt 0:00:25]} 23. c4 {[%emt 0:00:50]} Qb8 {[%emt 0:00:37]} 24. Qd1 {[%emt 0:04:06]} a4 {[%emt 0:03:31]} 25. c5 {[%emt 0:02:44]} dxc5 {[%emt 0:00:41]} 26. Bxc5 {[%emt 0:00:11]} Bd6 {[%emt 0:00:35]} 27. Bxd6 {[%emt 0:02:53]} Qxd6 {[%emt 0:00:35]} 28. Nd2 {[%emt 0:00:22]} Rfc8 {[%emt 0:04:41]} 29. Nc4 {[%emt 0:01:01]} Qb4 {[%emt 0:02:15]} 30. Qe1 {[%emt 0:01:48]} Qb8 {[%emt 0:11:31]} 31. Qe3 {[%emt 0:00:27]} Ra7 {[%emt 0:00:21]} 32. Rd1 {[%emt 0:05:17]} Rb7 {[%emt 0:02:41]} 33. Nf5 {[%emt 0:03:40]} Ne8 {[%emt 0:03:45]} 34. g3 {[%emt 0:02:09]} Rb4 {[%emt 0:00:36]} 35. Qe2 {[%emt 0:00:53]} f6 {[%emt 0:03:10]} 36. h4 {[%emt 0:03:17]} Bxf5 {[%emt 0:00:44]} 37. exf5 {[%emt 0:00:07]} Ne7 {[%emt 0:00:03]} 38. d6 {[%emt 0:00:20]} Nxd6 {[%emt 0:01:13]} 39. Nxd6 {[%emt 0:00:07]} Qxd6 {[%emt 0:00:04]} 40. Ba6 {[%emt 0:00:17]} Qb8 {[%emt 0:01:09]} 41. Bxc8 {[%emt 0:00:12]} Qxc8 {[%emt 0:00:05]} 42. Rd6 {[%emt 0:02:09]} Nxf5 {[%emt 0:02:40]} 43. Ra6 {[%emt 0:01:08]} Qc2 {[%emt 0:00:06]} 44. Qh5 {[%emt 0:00:53]} Qe4 {[%emt 0:03:14]} 45. Rd1 {[%emt 0:01:28]} Rc4 {[%emt 0:05:52]} 46. Ra7 {[%emt 0:02:48]} Nd4 {[%emt 0:00:07]} 47. Qf7 {[%emt 0:00:28]} Qg4 {[%emt 0:00:10]} 48. Kg2 {[%emt 0:00:32]} Qf3+ {[%emt 0:00:34]} 49. Kh3 {[%emt 0:00:15]} Qf5+ {[%emt 0:01:47]} 50. Kg2 {[%emt 0:00:06]} Qe4+ {[%emt 0:00:51]} 51. Kh3 {[%emt 0:00:18]} Qf5+ {[%emt 0:00:47]} 52. Kg2 {[%emt 0:00:07]} Qf3+ {[%emt 0:00:44]} 53. Kh3 {[%emt 0:00:07]} Qf5+ {[%emt 0:03:01]} 1/2-1/2

[Event "EYCC Girls U20 2021"]
[Site "Tornelo"]
[Date "2021.10.15"]
[Round "2.4"]
[White "Cvitan, Ena"]
[Black "Bucur, Denisa-Andreea"]
[Result "1-0"]
[ECO "D27"]
[WhiteElo "2260"]
[BlackElo "2049"]
[Annotator "ChessBase"]
[PlyCount "75"]
[EventDate "2021.10.15"]
[EventType "swiss"]
[EventCountry "NET"]
[SourceTitle "playchess.com"]
[Source "ChessBase"]
[SourceQuality "1"]
[TimeControl "5400+30"]

1. d4 {[%emt 0:00:30]} d5 {[%emt 0:00:35]} 2. c4 {[%emt 0:00:04]} dxc4 {[%emt 0:00:04]} 3. e3 {[%emt 0:00:08]} Nf6 {[%emt 0:00:05]} 4. Bxc4 {[%emt 0:00:07]} a6 {[%emt 0:00:02]} 5. Nf3 {[%emt 0:00:27]} e6 {[%emt 0:00:06]} 6. O-O {[%emt 0:00:13]} Nbd7 {[%emt 0:00:04]} 7. b3 {[%emt 0:01:57]} c5 {[%emt 0:01:14]} 8. Bb2 {[%emt 0:00:11]} b5 {[%emt 0:04:36]} 9. Be2 {[%emt 0:00:38]} Bb7 {[%emt 0:00:27]} 10. Nbd2 {[%emt 0:00:49]} Be7 {[%emt 0:00:51]} 11. a4 {[%emt 0:00:27]} b4 {[%emt 0:03:19]} 12. Nc4 {[%emt 0:00:13]} O-O {[%emt 0:00:45]} 13. Rc1 {[%emt 0:02:31]} Rc8 {[%emt 0:02:41]} 14. dxc5 {[%emt 0:05:17]} Nxc5 {[%emt 0:07:26]} 15. Qxd8 {[%emt 0:09:46]} Rfxd8 {[%emt 0:00:44]} 16. Na5 {[%emt 0:00:12]} Bd5 {[%emt 0:12:01]} 17. Bc4 {[%emt 0:05:29]} Be4 {[%emt 0:07:29]} 18. Bd4 {[%emt 0:04:11]} Nfd7 {[%emt 0:03:45]} 19. Rfd1 {[%emt 0:01:56]} Bf6 {[%emt 0:05:39]} 20. Bxf6 {[%emt 0:03:06]} Nxf6 {[%emt 0:05:20]} 21. Rxd8+ {[%emt 0:01:14]} Rxd8 {[%emt 0:00:05]} 22. Nd4 {[%emt 0:00:14]} Bd3 {[%emt 0:07:23]} 23. Ndc6 {[%emt 0:07:45]} Ra8 {[%emt 0:03:00]} 24. Bxd3 {[%emt 0:05:55]} Nxd3 {[%emt 0:00:10]} 25. Rd1 {[%emt 0:00:12]} Nc5 {[%emt 0:00:33]} 26. Nxb4 {[%emt 0:00:25]} h5 {[%emt 0:01:27]} 27. Nbc6 {[%emt 0:02:23]} Kh7 {[%emt 0:01:47]} 28. f3 {[%emt 0:02:17]} Rc8 {[%emt 0:02:12]} 29. Ne5 {[%emt 0:00:48]} Rb8 {[%emt 0:05:40]} 30. Nxf7 {[%emt 0:00:43]} Nd5 {[%emt 0:00:21]} 31. Ng5+ {[%emt 0:01:57]} Kg6 {[%emt 0:01:19]} 32. Nxe6 {[%emt 0:00:35]} Nxe3 {[%emt 0:00:19]} 33. Rd6 {[%emt 0:01:27]} Nf5 {[%emt 0:01:12]} 34. Nf4+ {[%emt 0:01:23]} Kg5 {[%emt 0:00:15]} 35. Nh3+ {[%emt 0:00:33]} Kh4 {[%emt 0:00:04]} 36. Rd5 {[%emt 0:00:36]} Nxb3 {[%emt 0:00:43]} 37. Rxf5 {[%emt 0:00:37]} g5 {[%emt 0:00:05]} 38. Nf2 {[%emt 0:00:30]} 1-0

[Event "EYCC Girls U20 2021"]
[Site "Tornelo"]
[Date "2021.10.15"]
[Round "2.5"]
[White "Hereklioglu, Sude"]
[Black "Sliwicka, Alicja"]
[Result "0-1"]
[ECO "B22"]
[WhiteElo "1905"]
[BlackElo "2304"]
[Annotator "ChessBase"]
[PlyCount "108"]
[EventDate "2021.10.15"]
[EventType "swiss"]
[EventCountry "NET"]
[SourceTitle "playchess.com"]
[Source "ChessBase"]
[SourceQuality "1"]
[TimeControl "5400+30"]

1. e4 {[%emt 0:00:30]} c5 {[%emt 0:00:35]} 2. Nf3 {[%emt 0:00:08]} e6 {[%emt 0:00:04]} 3. c3 {[%emt 0:02:36]} d5 {[%emt 0:00:06]} 4. exd5 {[%emt 0:01:05]} Qxd5 {[%emt 0:00:05]} 5. d4 {[%emt 0:02:05]} Nf6 {[%emt 0:00:05]} 6. Be2 {[%emt 0:02:07]} Nc6 {[%emt 0:00:12]} 7. O-O {[%emt 0:00:38]} cxd4 {[%emt 0:00:19]} 8. cxd4 {[%emt 0:00:20]} Be7 {[%emt 0:02:03]} 9. Nc3 {[%emt 0:02:04]} Qd8 {[%emt 0:02:30]} 10. b3 {[%emt 0:04:18]} a6 {[%emt 0:03:47]} 11. a4 {[%emt 0:08:52]} b6 {[%emt 0:01:08]} 12. Bb2 {[%emt 0:01:41]} Bb7 {[%emt 0:00:53]} 13. Bc4 {[%emt 0:05:07]} Na5 {[%emt 0:04:38]} 14. Qd3 {[%emt 0:03:10]} Nxc4 {[%emt 0:10:55]} 15. bxc4 {[%emt 0:01:20]} Rc8 {[%emt 0:12:58]} 16. Ne5 {[%emt 0:10:04]} Nd7 {[%emt 0:03:45]} 17. Nxd7 {[%emt 0:09:27]} Qxd7 {[%emt 0:00:07]} 18. d5 {[%emt 0:01:48]} O-O {[%emt 0:01:43]} 19. Rfd1 {[%emt 0:09:31]} Bf6 {[%emt 0:04:00]} 20. Rab1 {[%emt 0:22:55]} Rfd8 {[%emt 0:06:28]} 21. Qg3 {[%emt 0:05:09]} Kh8 {[%emt 0:13:02]} 22. Ba1 {[%emt 0:04:15]} exd5 {[%emt 0:04:32]} 23. Rxb6 {[%emt 0:01:52]} d4 {[%emt 0:03:21]} 24. Nd5 {[%emt 0:00:47]} Bxd5 {[%emt 0:03:19]} 25. cxd5 {[%emt 0:00:06]} Qxd5 {[%emt 0:02:00]} 26. Rxa6 {[%emt 0:00:13]} Qf5 {[%emt 0:02:21]} 27. Ra7 {[%emt 0:01:01]} Qe6 {[%emt 0:03:13]} 28. Qd3 {[%emt 0:00:27]} Rb8 {[%emt 0:01:44]} 29. Ra6 {[%emt 0:00:34]} Qd5 {[%emt 0:00:07]} 30. a5 {[%emt 0:00:38]} Rb3 {[%emt 0:00:44]} 31. Qd2 {[%emt 0:00:17]} Ra3 {[%emt 0:01:35]} 32. h3 {[%emt 0:00:31]} Ra2 {[%emt 0:00:57]} 33. Qf4 {[%emt 0:00:22]} Be5 {[%emt 0:02:46]} 34. Qg4 {[%emt 0:00:12]} Rxa5 {[%emt 0:01:00]} 35. Rxa5 {[%emt 0:00:54]} Qxa5 {[%emt 0:00:04]} 36. f4 {[%emt 0:00:29]} Bf6 {[%emt 0:00:12]} 37. Qf3 {[%emt 0:00:30]} h6 {[%emt 0:01:46]} 38. Qe4 {[%emt 0:00:52]} Qc5 {[%emt 0:00:12]} 39. Kh1 {[%emt 0:00:18]} Qh5 {[%emt 0:01:06]} 40. Rd3 {[%emt 0:00:30]} Qb5 {[%emt 0:01:00]} 41. Bxd4 {[%emt 0:00:41]} Qc4 {[%emt 0:01:42]} 42. Bxf6 {[%emt 0:00:31]} Qxd3 {[%emt 0:01:15]} 43. Qxd3 {[%emt 0:00:19]} Rxd3 {[%emt 0:00:04]} 44. Be5 {[%emt 0:00:10]} Kh7 {[%emt 0:00:17]} 45. Kg1 {[%emt 0:00:23]} Kg6 {[%emt 0:00:32]} 46. Kf2 {[%emt 0:00:18]} f6 {[%emt 0:00:12]} 47. Bc7 {[%emt 0:00:36]} h5 {[%emt 0:00:27]} 48. Ke2 {[%emt 0:00:59]} Rb3 {[%emt 0:00:05]} 49. Bd6 {[%emt 0:00:17]} Kf5 {[%emt 0:00:19]} 50. Kf2 {[%emt 0:00:52]} h4 {[%emt 0:00:27]} 51. Bf8 {[%emt 0:00:23]} g6 {[%emt 0:00:09]} 52. Be7 {[%emt 0:00:20]} Rd3 {[%emt 0:00:10]} 53. Ke2 {[%emt 0:00:52]} Rd7 {[%emt 0:00:04]} 54. Bc5 {[%emt 0:00:31]} Kxf4 {[%emt 0:00:05]} 0-1

[Event "EYCC Girls U20 2021"]
[Site "Tornelo"]
[Date "2021.10.15"]
[Round "3.1"]
[White "Sliwicka, Alicja"]
[Black "Heydarova, Aytaj"]
[Result "1-0"]
[ECO "B76"]
[WhiteElo "2304"]
[BlackElo "1637"]
[Annotator "NA"]
[PlyCount "89"]
[EventDate "2021.10.15"]
[EventType "swiss"]
[EventCountry "NET"]
[SourceTitle "playchess.com"]
[Source "ChessBase"]
[SourceQuality "1"]
[TimeControl "5400+30"]

1. e4 {[%emt 0:00:30]} c5 {[%emt 0:00:35]} 2. Nf3 {[%emt 0:00:08]} d6 {[%emt 0:00:02]} 3. d4 {[%emt 0:00:08]} cxd4 {[%emt 0:00:02]} 4. Nxd4 {[%emt 0:00:03]} Nf6 {[%emt 0:00:02]} 5. Nc3 {[%emt 0:00:04]} g6 {[%emt 0:00:04]} 6. Be3 {[%emt 0:00:04]} Bg7 {[%emt 0:00:03]} 7. f3 {[%emt 0:00:06]} O-O {[%emt 0:00:03]} 8. Qd2 {[%emt 0:00:09]} Nc6 {[%emt 0:00:02]} 9. O-O-O {[%emt 0:00:05]} d5 {[%emt 0:00:54]} 10. exd5 {[%emt 0:00:46]} Nxd5 {[%emt 0:02:16]} 11. Nxc6 {[%emt 0:00:09]} bxc6 {[%emt 0:00:41]} 12. Bd4 {[%emt 0:00:04]} Qc7 {[%emt 0:08:29]} 13. Bxg7 {[%emt 0:05:09]} Kxg7 {[%emt 0:00:04]} 14. Nxd5 {[%emt 0:06:38]} cxd5 {[%emt 0:01:16]} 15. Qxd5 {[%emt 0:00:14]} Be6 {[%emt 0:00:47]} 16. Qd4+ {[%emt 0:00:11]} Kg8 {[%emt 0:00:10]} 17. Qa4 {[%emt 0:00:45]} Rab8 {[%emt 0:06:56]} 18. Bd3 {[%emt 0:14:34]} Rb6 {[%emt 0:06:05]} 19. Rd2 {[%emt 0:04:51]} Rfb8 {[%emt 0:03:07]} 20. c3 {[%emt 0:01:44]} Rc6 {[%emt 0:00:34]} 21. Re1 {[%emt 0:07:52]} Rc5 {[%emt 0:07:31]} 22. Bb1 {[%emt 0:07:27]} Ra5 {[%emt 0:06:13]} 23. Qh4 {[%emt 0:08:45]} Rc5 {[%emt 0:11:46]} 24. Qd4 {[%emt 0:10:39]} Qa5 {[%emt 0:06:24]} 25. Ree2 {[%emt 0:05:43]} Rbc8 {[%emt 0:05:48]} 26. Kd1 {[%emt 0:02:53]} R5c7 {[%emt 0:04:09]} 27. Ke1 {[%emt 0:00:53]} Qa6 {[%emt 0:04:36]} 28. a3 {[%emt 0:00:59]} Rd7 {[%emt 0:06:57]} 29. Qe3 {[%emt 0:00:29]} Rxd2 {[%emt 0:02:08]} 30. Rxd2 {[%emt 0:00:11]} Qa4 {[%emt 0:01:45]} 31. Qd4 {[%emt 0:00:43]} Qa5 {[%emt 0:00:30]} 32. Kf2 {[%emt 0:01:30]} Rc7 {[%emt 0:01:48]} 33. Qb4 {[%emt 0:02:04]} Qxb4 {[%emt 0:02:46]} 34. axb4 {[%emt 0:00:05]} Kg7 {[%emt 0:00:02]} 35. Ke3 {[%emt 0:00:30]} Kf6 {[%emt 0:00:05]} 36. Be4 {[%emt 0:00:21]} Bc4 {[%emt 0:01:05]} 37. Rd8 {[%emt 0:02:54]} Ba6 {[%emt 0:00:33]} 38. Bd3 {[%emt 0:00:23]} Bb7 {[%emt 0:00:10]} 39. c4 {[%emt 0:00:38]} e5 {[%emt 0:00:33]} 40. b5 {[%emt 0:00:35]} Ke7 {[%emt 0:00:11]} 41. Rh8 {[%emt 0:00:05]} h5 {[%emt 0:00:02]} 42. b4 {[%emt 0:00:15]} Ke6 {[%emt 0:00:22]} 43. Re8+ {[%emt 0:01:26]} Kf6 {[%emt 0:00:13]} 44. c5 {[%emt 0:01:31]} Bc8 {[%emt 0:00:41]} 45. Be4 {[%emt 0:02:19]} 1-0

[Event "EYCC Girls U20 2021"]
[Site "Tornelo"]
[Date "2021.10.15"]
[Round "3.2"]
[White "Bucur, Denisa-Andreea"]
[Black "Hereklioglu, Sude"]
[Result "0-1"]
[ECO "E62"]
[WhiteElo "2049"]
[BlackElo "1905"]
[Annotator "NA"]
[PlyCount "122"]
[EventDate "2021.10.15"]
[EventType "swiss"]
[EventCountry "NET"]
[SourceTitle "playchess.com"]
[Source "ChessBase"]
[SourceQuality "1"]
[TimeControl "5400+30"]

1. d4 {[%emt 0:00:30]} Nf6 {[%emt 0:00:39]} 2. Nf3 {[%emt 0:00:04]} g6 {[%emt 0:00:11]} 3. c4 {[%emt 0:00:04]} Bg7 {[%emt 0:00:13]} 4. g3 {[%emt 0:00:04]} d6 {[%emt 0:01:01]} 5. Bg2 {[%emt 0:00:05]} c6 {[%emt 0:00:32]} 6. O-O {[%emt 0:00:07]} O-O {[%emt 0:00:49]} 7. Nc3 {[%emt 0:00:06]} Qa5 {[%emt 0:00:24]} 8. Bd2 {[%emt 0:02:36]} Qh5 {[%emt 0:00:58]} 9. Qb3 {[%emt 0:00:45]} e5 {[%emt 0:07:46]} 10. dxe5 {[%emt 0:06:53]} dxe5 {[%emt 0:00:11]} 11. Ng5 {[%emt 0:03:57]} h6 {[%emt 0:06:18]} 12. Bf3 {[%emt 0:02:54]} Bg4 {[%emt 0:09:33]} 13. Nge4 {[%emt 0:02:19]} Nxe4 {[%emt 0:11:55]} 14. Nxe4 {[%emt 0:00:28]} b6 {[%emt 0:02:16]} 15. c5 {[%emt 0:10:15]} Nd7 {[%emt 0:06:16]} 16. cxb6 {[%emt 0:06:06]} axb6 {[%emt 0:00:35]} 17. Rfc1 {[%emt 0:00:25]} Bxf3 {[%emt 0:02:31]} 18. exf3 {[%emt 0:00:18]} c5 {[%emt 0:01:23]} 19. Kg2 {[%emt 0:06:59]} Kh7 {[%emt 0:10:11]} 20. Qb5 {[%emt 0:03:41]} Rad8 {[%emt 0:03:03]} 21. Rd1 {[%emt 0:00:48]} f5 {[%emt 0:02:15]} 22. Nd6 {[%emt 0:04:31]} e4 {[%emt 0:03:54]} 23. f4 {[%emt 0:07:19]} Qf3+ {[%emt 0:01:04]} 24. Kg1 {[%emt 0:00:09]} Bd4 {[%emt 0:10:44]} 25. Rf1 {[%emt 0:08:53]} Nf6 {[%emt 0:03:07]} 26. Nc4 {[%emt 0:05:49]} Ng4 {[%emt 0:01:07]} 27. Be1 {[%emt 0:00:46]} Qe2 {[%emt 0:09:52]} 28. Nd6 {[%emt 0:05:54]} Qxb2 {[%emt 0:02:05]} 29. Rb1 {[%emt 0:00:21]} Qxb5 {[%emt 0:01:28]} 30. Nxb5 {[%emt 0:00:05]} Ra8 {[%emt 0:00:20]} 31. h3 {[%emt 0:00:48]} Nf6 {[%emt 0:00:46]} 32. Bc3 {[%emt 0:00:57]} Bxc3 {[%emt 0:02:09]} 33. Nxc3 {[%emt 0:00:05]} Ra3 {[%emt 0:00:15]} 34. Rfc1 {[%emt 0:00:04]} Rb8 {[%emt 0:00:16]} 35. Rb2 {[%emt 0:01:18]} g5 {[%emt 0:00:07]} 36. Nb1 {[%emt 0:01:33]} Raa8 {[%emt 0:01:00]} 37. fxg5 {[%emt 0:00:03]} hxg5 {[%emt 0:00:05]} 38. Rd1 {[%emt 0:00:41]} b5 {[%emt 0:00:31]} 39. Rd6 {[%emt 0:00:24]} Kg7 {[%emt 0:00:05]} 40. Rc6 {[%emt 0:00:39]} c4 {[%emt 0:00:53]} 41. Rc5 {[%emt 0:03:23]} Kg6 {[%emt 0:00:16]} 42. Nd2 {[%emt 0:00:53]} f4 {[%emt 0:01:07]} 43. g4 {[%emt 0:01:49]} Rd8 {[%emt 0:00:52]} 44. Nb1 {[%emt 0:01:43]} e3 {[%emt 0:00:43]} 45. fxe3 {[%emt 0:01:03]} fxe3 {[%emt 0:00:12]} 46. Re5 {[%emt 0:03:01]} Rd1+ {[%emt 0:00:42]} 47. Kg2 {[%emt 0:00:21]} Re8 {[%emt 0:00:42]} 48. Rxe8 {[%emt 0:00:39]} Nxe8 {[%emt 0:00:07]} 49. Kf3 {[%emt 0:00:22]} Nc7 {[%emt 0:00:23]} 50. Nc3 {[%emt 0:00:35]} Rd3 {[%emt 0:01:00]} 51. Nxb5 {[%emt 0:02:01]} c3 {[%emt 0:00:14]} 52. Nxc3 {[%emt 0:02:50]} Rxc3 {[%emt 0:00:07]} 53. a4 {[%emt 0:00:29]} Nd5 {[%emt 0:00:25]} 54. h4 {[%emt 0:02:39]} Nf4 {[%emt 0:00:44]} 55. h5+ {[%emt 0:00:33]} Kg7 {[%emt 0:00:36]} 56. Rb7+ {[%emt 0:00:09]} Kf6 {[%emt 0:00:34]} 57. h6 {[%emt 0:01:36]} e2+ {[%emt 0:00:11]} 58. Kf2 {[%emt 0:00:03]} Rc1 {[%emt 0:00:27]} 59. Rb6+ {[%emt 0:00:07]} Ke5 {[%emt 0:00:17]} 60. Rb5+ {[%emt 0:00:06]} Kd6 {[%emt 0:00:11]} 61. Rb6+ {[%emt 0:00:04]} Kc7 {[%emt 0:00:15]} 0-1

[Event "EYCC Girls U20 2021"]
[Site "Tornelo"]
[Date "2021.10.15"]
[Round "3.3"]
[White "Nosacheva, Mariya"]
[Black "Cvitan, Ena"]
[Result "1-0"]
[ECO "B11"]
[WhiteElo "2239"]
[BlackElo "2260"]
[Annotator "NA"]
[PlyCount "101"]
[EventDate "2021.10.15"]
[EventType "swiss"]
[EventCountry "NET"]
[SourceTitle "playchess.com"]
[Source "ChessBase"]
[SourceQuality "1"]
[TimeControl "5400+30"]

1. e4 {[%emt 0:00:30]} c6 {[%emt 0:00:37]} 2. Nc3 {[%emt 0:00:05]} d5 {[%emt 0:00:15]} 3. Nf3 {[%emt 0:00:05]} dxe4 {[%emt 0:01:18]} 4. Nxe4 {[%emt 0:00:06]} Nf6 {[%emt 0:00:02]} 5. Qe2 {[%emt 0:00:10]} Nxe4 {[%emt 0:00:24]} 6. Qxe4 {[%emt 0:00:06]} Be6 {[%emt 0:00:25]} 7. b3 {[%emt 0:00:16]} Nd7 {[%emt 0:00:09]} 8. Bb2 {[%emt 0:00:30]} Nf6 {[%emt 0:00:07]} 9. Qh4 {[%emt 0:00:35]} Bf5 {[%emt 0:00:31]} 10. Bc4 {[%emt 0:06:43]} e6 {[%emt 0:00:43]} 11. O-O-O {[%emt 0:02:57]} Be7 {[%emt 0:08:34]} 12. Qg5 {[%emt 0:03:04]} Bg6 {[%emt 0:17:39]} 13. Qe5 {[%emt 0:05:36]} b5 {[%emt 0:07:18]} 14. Be2 {[%emt 0:07:27]} Bd6 {[%emt 0:06:58]} 15. Qc3 {[%emt 0:02:00]} Rc8 {[%emt 0:04:34]} 16. h4 {[%emt 0:04:21]} Rg8 {[%emt 0:00:46]} 17. d3 {[%emt 0:10:04]} Nd5 {[%emt 0:01:45]} 18. Qe1 {[%emt 0:00:06]} Bh5 {[%emt 0:12:00]} 19. Nd4 {[%emt 0:05:20]} Bb4 {[%emt 0:04:03]} 20. c3 {[%emt 0:01:06]} Bxe2 {[%emt 0:01:10]} 21. Nxe2 {[%emt 0:00:10]} Be7 {[%emt 0:01:04]} 22. Kb1 {[%emt 0:00:43]} Bf6 {[%emt 0:01:45]} 23. Rh3 {[%emt 0:02:59]} a5 {[%emt 0:01:04]} 24. f4 {[%emt 0:01:24]} b4 {[%emt 0:01:16]} 25. c4 {[%emt 0:00:57]} Bxb2 {[%emt 0:01:36]} 26. Kxb2 {[%emt 0:00:56]} Qf6+ {[%emt 0:02:11]} 27. d4 {[%emt 0:00:06]} Ne7 {[%emt 0:00:44]} 28. g4 {[%emt 0:02:01]} h5 {[%emt 0:01:56]} 29. g5 {[%emt 0:02:50]} Qf5 {[%emt 0:00:05]} 30. Re3 {[%emt 0:00:38]} Rd8 {[%emt 0:06:11]} 31. Re5 {[%emt 0:00:24]} Qg4 {[%emt 0:00:13]} 32. Rxa5 {[%emt 0:00:17]} Nf5 {[%emt 0:00:50]} 33. Re5 {[%emt 0:02:10]} Nxh4 {[%emt 0:00:53]} 34. Qxb4 {[%emt 0:02:01]} Ng6 {[%emt 0:03:04]} 35. Re4 {[%emt 0:03:01]} Qg2 {[%emt 0:00:45]} 36. Re3 {[%emt 0:00:18]} Nxf4 {[%emt 0:00:45]} 37. Rd2 {[%emt 0:00:48]} Qxg5 {[%emt 0:01:44]} 38. Qb7 {[%emt 0:03:55]} c5 {[%emt 0:00:34]} 39. Qb5+ {[%emt 0:01:11]} Ke7 {[%emt 0:01:46]} 40. Nxf4 {[%emt 0:03:22]} Qxf4 {[%emt 0:00:05]} 41. Qxc5+ {[%emt 0:00:04]} Qd6 {[%emt 0:04:22]} 42. Qxh5 {[%emt 0:00:24]} Ra8 {[%emt 0:01:10]} 43. Qg5+ {[%emt 0:03:53]} f6 {[%emt 0:00:19]} 44. Qg4 {[%emt 0:02:51]} Qa3+ {[%emt 0:00:57]} 45. Kb1 {[%emt 0:00:10]} Ra6 {[%emt 0:00:07]} 46. Rde2 {[%emt 0:00:28]} e5 {[%emt 0:02:19]} 47. dxe5 {[%emt 0:01:39]} f5 {[%emt 0:00:06]} 48. Qg5+ {[%emt 0:00:57]} Ke8 {[%emt 0:01:29]} 49. Rd3 {[%emt 0:01:28]} Qe7 {[%emt 0:00:54]} 50. Qxf5 {[%emt 0:00:08]} Re6 {[%emt 0:00:29]} 51. Red2 {[%emt 0:00:47]} 1-0